bitfinex/quotes_ETHUSD_20220201
["timestamp","ask_amount","ask_price","bid_price","bid_amount"]
[1643686612333,0.1822,2742.2,2740.9,0.67988239]
[1643686612534,2.0,2742.4,2740.9,0.67988239]
[1643686612535,0.1822,2742.3,2740.9,0.67988239]
[1643686612735,0.1822,2742.3,2740.9,1.97988239]
[1643686612937,0.1822,2742.4,2741.9,0.37010129]
[1643686613136,0.1822,2742.4,2740.9,3.20998239]
[1643686613337,1.2128,2742.3,2741.5,0.15288239]
[1643686613536,0.1822,2742.2,2741.5,0.15288239]
[1643686613938,0.91203,2742.1,2741.5,0.15288239]
[1643686614137,0.1822,2742.0,2741.5,0.15288239]
[1643686614400,2.61902732,2742.0,2741.2,0.15288239]
[1643686614580,2.61902732,2742.0,2741.0,0.15288239]
[1643686614784,3.60489129,2742.0,2741.0,0.15288239]
[1643686615282,0.41040301,2741.7,2741.0,0.15288239]
[1643686615482,0.1822,2741.6,2741.0,0.15288239]
[1643686615681,0.91218,2741.6,2741.0,0.15288239]
[1643686615881,0.1822,2741.5,2741.0,0.15288239]
[1643686617082,0.91218,2741.6,2741.0,0.15288239]
[1643686618331,0.1822,2741.5,2741.0,0.15288239]
[1643686618536,0.1822,2741.5,2740.8,0.1822]
[1643686618736,0.1822,2741.5,2740.4,0.1824]
[1643686618737,0.91229,2741.3,2740.4,0.1824]
[1643686618936,0.91229,2741.3,2740.3,0.16525283]
[1643686618937,0.1824,2741.2,2740.3,0.16525283]
[1643686619143,0.1824,2741.2,2740.4,0.1824]
[1643686619343,0.1824,2741.2,2740.3,0.16525283]
[1643686619738,0.1824,2741.2,2740.5,1.22942003]
[1643686619945,0.1824,2742.0,2740.7,1.0]
[1643686620138,1.89256397,2742.2,2740.7,1.0]
[1643686620139,1.3889,2742.2,2740.9,0.01219897]
[1643686620341,1.3889,2742.2,2740.9,21.66219897]
[1643686620342,0.75642399,2742.1,2740.9,21.66219897]
[1643686620539,0.75642399,2742.1,2741.0,0.1822]
[1643686620737,0.75642399,2742.1,2741.1,0.15288239]
[1643686620942,0.75642399,2742.1,2741.4,0.67006137]
[1643686621140,0.1822,2742.0,2741.5,0.15288239]
[1643686621338,0.75642399,2741.9,2741.5,0.15288239]
[1643686623382,0.75642399,2741.9,2741.5,0.48649612]
[1643686624785,0.75642399,2741.9,2741.5,0.15288239]
[1643686626055,0.75642399,2741.9,2741.6,0.1822]
[1643686626233,1.09415,2742.3,2741.8,0.15288239]
[1643686626430,0.7567401,2742.2,2741.8,0.15288239]
[1643686626630,0.7567401,2742.2,2741.8,0.10288239]
[1643686627031,0.7567401,2742.2,2741.6,0.28508239]
[1643686628153,1.1041731,2742.2,2741.6,0.28508239]
[1643686628331,0.7567401,2742.1,2741.6,0.28508239]
[1643686628533,0.7567401,2742.0,2741.6,0.28508239]
[1643686628732,0.1822,2742.2,2741.6,0.28508239]
[1643686628733,0.7567401,2742.1,2741.6,0.28508239]
[1643686628932,0.1822,2742.0,2741.6,0.28508239]
[1643686629136,0.1822,2742.2,2741.6,0.28508239]
[1643686629384,0.75636817,2742.1,2741.6,0.28508239]
[1643686629585,0.75636817,2742.1,2741.6,0.10288239]
[1643686635841,2.17398648,2742.0,2741.6,0.10288239]
[1643686636041,2.58053817,2742.1,2741.6,0.10288239]
[1643686636042,0.93856817,2741.9,2741.6,0.10288239]
[1643686636240,0.75636817,2741.8,2741.6,0.10288239]
[1643686636880,1.16219258,2741.8,2741.6,0.10288239]
[1643686637182,0.75636817,2741.7,2741.6,0.10288239]
[1643686638787,0.75636817,2741.7,2741.6,0.00037725]
[1643686639185,0.75636817,2741.8,2741.6,0.00037725]
[1643686639387,0.75636817,2741.7,2741.6,0.00037725]
[1643686639808,0.75636817,2741.8,2741.6,0.00037725]
[1643686639986,0.75636817,2741.7,2741.6,0.00037725]
[1643686640389,0.75636817,2741.8,2741.6,0.00037725]
[1643686646894,0.75636817,2741.8,2741.7,0.00037725]
[1643686647494,0.91216,2742.0,2741.7,0.00037725]
[1643686647495,0.75636817,2741.9,2741.7,0.00037725]
[1643686647694,0.91216,2742.0,2741.7,0.00037725]
[1643686647695,0.75636817,2741.8,2741.7,0.00037725]
[1643686647897,0.75636817,2741.9,2741.7,0.00037725]
[1643686648133,0.91216,2742.0,2741.7,0.00037725]
[1643686648134,0.75636817,2741.8,2741.7,0.00037725]
[1643686648641,0.91216,2742.0,2741.7,0.00037725]
[1643686648837,0.75999102,2741.8,2741.7,0.00037725]
[1643686649034,0.75999102,2741.9,2741.7,0.00037725]
[1643686649242,0.75999102,2741.8,2741.5,0.00037725]
[1643686649443,1.59802397,2742.0,2740.9,0.1822]
[1643686649444,2.30641,2741.9,2740.9,0.1822]
[1643686649647,0.91238,2741.6,2740.5,2.00037725]
[1643686649852,0.68840084,2741.4,2740.6,0.75261208]
[1643686650039,0.87080084,2741.3,2740.7,2.0]
[1643686650237,0.76013735,2741.2,2740.5,0.00037725]
[1643686650439,0.1824,2741.1,2740.5,0.75299583]
[1643686650643,1.67243735,2741.0,2740.5,0.75261858]
[1643686650849,1.67243735,2741.0,2740.4,0.01]
[1643686650850,0.94253735,2740.9,2740.4,0.01]
[1643686651038,0.76013735,2740.8,2740.4,0.01]
[1643686651245,0.32271348,2740.5,2740.4,0.01]
[1643686651460,0.50511348,2740.5,2740.4,0.01]
[1643686651640,1.26525083,2740.5,2740.4,0.01]
[1643686651889,0.94253735,2740.5,2740.4,0.01]
[1643686652091,0.76013735,2740.5,2740.4,0.76318612]
[1643686652291,0.76013735,2740.5,2740.4,0.01]
[1643686652507,0.1824,2740.7,2740.4,0.01]
[1643686652508,0.76013735,2740.6,2740.4,0.01]
[1643686653493,0.76013735,2740.6,2740.5,0.00037725]
[1643686653695,0.76013735,2740.6,2740.5,0.75251821]
[1643686653896,0.76013735,2740.6,2740.5,0.93491821]
[1643686654095,0.87080084,2741.4,2740.5,1.23491821]
[1643686654293,0.76058668,2741.3,2740.6,0.93454096]
[1643686654496,0.87080084,2741.5,2740.7,0.75214096]
[1643686654497,0.76058668,2741.2,2740.7,0.75214096]
[1643686654793,0.76058668,2741.1,2740.8,0.18277725]
[1643686654996,0.76058668,2741.0,2740.8,0.00037725]
[1643686655194,0.76058668,2740.9,2740.8,0.75193949]
[1643686655393,0.76058668,2740.9,2740.8,0.00037725]
[1643686656034,0.76058668,2740.9,2740.8,0.18277725]
[1643686656442,0.91219,2741.3,2740.8,22.57280023]
[1643686656680,0.77216924,2741.2,2740.9,1.49852334]
[1643686656837,1.1448,2741.6,2741.1,0.00037725]
[1643686657037,0.77217781,2741.5,2741.1,0.00037725]
[1643686657437,0.91214,2741.4,2741.1,0.00037725]
[1643686657642,0.77217781,2741.3,2740.9,0.74033381]
[1643686657839,0.77217781,2741.3,2740.9,0.00037725]
[1643686658341,0.1824,2741.2,2740.8,0.1824]
[1643686658538,0.91227,2741.0,2740.8,0.1824]
[1643686658742,0.77217781,2740.9,2740.8,0.1824]
[1643686659387,0.77227291,2740.9,2740.8,0.1824]
[1643686659588,0.77227158,2740.9,2740.8,0.1824]
[1643686659788,0.7723106,2740.9,2740.8,0.18277725]
[1643686659992,0.7723106,2740.9,2740.8,0.00037725]
[1643686660591,0.7723106,2740.9,2740.8,0.18277725]
[1643686660794,6.2491,2741.7,2740.8,0.92262736]
[1643686661010,5.27850084,2741.8,2740.9,0.1822]
[1643686661011,5.09610084,2741.8,2740.9,0.1822]
[1643686661191,0.77209542,2741.7,2741.3,0.716061]
[1643686661390,0.77209542,2741.6,2741.4,0.1822]
[1643686661596,0.87060084,2742.1,2741.5,0.32008509]
[1643686661793,0.77273719,2742.0,2741.6,0.00037725]
[1643686662296,0.77273719,2741.9,2741.6,0.00037725]
[1643686663055,0.77159722,2741.9,2741.8,0.00037725]
[1643686664858,0.77159722,2741.9,2741.5,0.00037725]
[1643686665062,0.95379722,2741.9,2741.5,0.00037725]
[1643686665457,0.87060084,2741.9,2741.5,0.00037725]
[1643686665659,1.78260084,2742.0,2741.5,0.00037725]
[1643686666062,0.912,2742.0,2741.5,0.00037725]
[1643686668090,0.912,2742.0,2741.3,0.1822]
[1643686668091,0.68840084,2741.8,2741.3,0.1822]
[1643686668286,2.40335384,2741.9,2741.3,0.1822]
[1643686668287,0.91226,2741.6,2741.3,0.1822]
[1643686668488,0.1822,2741.5,2741.3,0.1822]
[1643686669289,0.1822,2741.5,2741.3,0.1762]
[1643686669688,0.1822,2741.5,2741.0,0.00037725]
[1643686670288,0.91219,2741.4,2741.0,0.00037725]
[1643686671550,1.82446,2741.4,2741.0,0.00037725]
[1643686673558,0.91219,2741.4,2741.0,0.00037725]
[1643686673865,6.84265084,2741.8,2741.0,0.00037725]
[1643686673866,1.15246951,2741.9,2741.2,21.65]
[1643686674057,0.68840084,2742.2,2741.3,21.8322]
[1643686674285,0.68840084,2742.2,2741.5,0.32419948]
[1643686674486,0.68840084,2742.3,2741.6,0.18257725]
[1643686674698,0.912,2742.2,2741.6,0.18257725]
[1643686675593,0.91195,2742.1,2742.0,0.84426961]
[1643686675833,0.91195,2742.1,2742.0,1.2384961]
[1643686676195,0.91195,2742.1,2742.0,0.84426961]
[1643686676393,0.91195,2742.1,2741.7,0.3]
[1643686676592,0.91195,2742.1,2741.6,0.00037725]
[1643686677197,1.09415,2742.1,2741.6,0.00037725]
[1643686677394,0.68840084,2741.8,2741.6,0.00037725]
[1643686677593,2.0108674,2742.1,2741.6,0.00037725]
[1643686677594,0.68840084,2741.9,2741.6,0.00037725]
[1643686677793,0.68840084,2741.8,2741.6,0.00037725]
[1643686678437,2.00633,2742.0,2741.6,0.00037725]
[1643686678438,7.4167174,2741.7,2741.6,0.00037725]
[1643686678637,7.4167174,2741.7,2741.0,0.1822]
[1643686678638,6.6822,2741.7,2741.1,0.00037725]
[1643686678838,1.6005478,2741.3,2741.1,0.00037725]
[1643686679442,0.8706678,2741.2,2740.5,0.00037725]
[1643686679639,0.31932723,2741.0,2740.5,0.00037725]
[1643686679842,0.31932723,2741.0,2740.4,0.01]
[1643686679843,0.1824,2740.9,2740.4,0.01]
[1643686680038,1.8247,2740.9,2740.6,0.00037725]
[1643686680239,1.8247,2740.9,2740.8,0.00037725]
[1643686681144,2.0746,2741.4,2740.8,2.19464433]
[1643686681145,0.25,2741.4,2740.8,2.19464433]
[1643686681344,0.25,2741.4,2740.9,22.56154041]
[1643686681547,0.25,2741.4,2741.0,1.83223563]
[1643686682011,0.25,2741.4,2741.1,0.00037725]
[1643686682210,0.8704678,2741.8,2741.3,0.00037725]
[1643686682515,1.2163,2741.9,2741.3,0.00037725]
[1643686682516,2.12831,2741.9,2741.3,23.79028279]
[1643686682910,2.12831,2741.9,2741.4,0.73052516]
[1643686682911,0.78198323,2741.8,2741.4,0.73052516]
[1643686683109,0.78198323,2741.8,2741.5,1.79894276]
[1643686683311,0.78198323,2741.8,2741.5,0.3]
[1643686683516,0.78198323,2741.8,2741.7,0.00037725]
[1643686685739,0.96418323,2741.8,2741.4,0.00037725]
[1643686685940,0.78198323,2741.7,2741.4,0.00037725]
[1643686686599,1.47025103,2741.7,2741.4,0.00037725]
[1643686686748,0.6882678,2741.6,2741.4,0.00037725]
[1643686686942,0.8704678,2741.6,2740.8,0.18257725]
[1643686687146,0.8704678,2741.6,2740.4,0.01]
[1643686687147,1.6005878,2741.4,2740.4,0.01]
[1643686687347,5.13698273,2741.3,2740.5,0.72965403]
[1643686687549,0.78198323,2741.2,2740.6,0.1824]
[1643686687742,0.96438323,2741.2,2740.7,1.62175283]
[1643686687944,0.78198323,2741.1,2740.8,0.72965403]
[1643686688445,0.78198323,2741.1,2740.5,0.915379]
[1643686688681,0.78198323,2741.1,2740.6,0.72940046]
[1643686688842,0.78198323,2741.1,2740.7,0.18277725]
[1643686689048,0.78198323,2741.1,2740.8,0.72940046]
[1643686689287,0.78198323,2741.1,2740.6,0.18277725]
[1643686689490,0.96438323,2741.1,2740.6,0.00037725]
[1643686689702,1.69435323,2741.0,2740.6,0.00037725]
[1643686689897,2.78909323,2740.9,2740.5,0.72960866]
[1643686690097,0.78198323,2740.8,2740.5,0.72960866]
[1643686691096,1.69433323,2740.8,2740.5,0.72960866]
[1643686691297,6.5,2740.6,2740.0,3.8314715]
[1643686691497,0.01206872,2740.2,2739.8,2.85834144]
[1643686691695,0.01206872,2740.2,2739.0,0.85380213]
[1643686691908,0.1824,2740.1,2738.9,0.85380213]
[1643686692097,0.4824,2740.1,2738.9,0.85380213]
[1643686692295,0.4824,2740.1,2739.4,0.31928306]
[1643686692496,0.25,2739.8,2739.4,0.31928306]
[1643686692939,1.16277,2739.8,2739.4,0.31928306]
[1643686693746,0.91277,2739.8,2739.5,0.1824]
[1643686694951,1.16277,2739.8,2739.5,0.1824]
[1643686696051,1.16277,2739.8,2739.5,21.65]
[1643686696648,11.0061,2740.3,2739.7,0.6927046]
[1643686696892,11.0061,2740.3,2739.7,22.6427046]
[1643686696893,0.91253,2740.1,2739.7,22.6427046]
[1643686697093,0.91253,2740.1,2739.8,21.8324]
[1643686697497,1.82507,2740.4,2739.8,21.8324]
[1643686697900,1.82507,2740.4,2740.0,0.43248609]
[1643686698095,1.82507,2740.4,2740.0,0.73248609]
[1643686698698,0.25,2740.6,2740.0,22.38248609]
[1643686698998,0.25,2740.6,2740.0,2.64486609]
[1643686698999,0.91244,2740.5,2740.0,2.64486609]
[1643686699197,0.91244,2740.5,2740.0,1.64486609]
[1643686699903,0.1824,2741.1,2740.0,1.64486609]
[1643686699904,0.1824,2741.5,2740.3,1.0]
[1643686700105,0.6882678,2741.7,2740.4,25.03482091]
[1643686700409,0.91216,2741.3,2740.4,25.03482091]
[1643686700648,0.91216,2741.3,2740.5,1.0]
[1643686700852,0.91216,2741.3,2740.6,3.91457675]
[1643686701053,1.09456,2741.3,2740.5,0.4824]
[1643686701258,1.34456,2741.3,2740.5,0.1824]
[1643686701656,1.82451,2741.2,2740.5,0.1824]
[1643686702460,0.91216,2741.3,2740.6,21.65]
[1643686702658,0.91205,2741.7,2740.7,3.08053857]
[1643686702859,0.91205,2741.7,2740.8,21.65]
[1643686703067,0.91205,2741.7,2740.9,23.90351247]
[1643686703262,0.91205,2741.7,2741.3,1.14436176]
[1643686703867,0.91205,2741.7,2741.3,22.79436176]
[1643686705895,0.91205,2741.7,2741.3,1.14436176]
[1643686706295,0.91205,2741.7,2741.0,1.91204]
[1643686706496,0.91205,2741.7,2741.1,0.3]
[1643686706695,0.91205,2741.7,2740.8,0.1822]
[1643686706897,0.91205,2741.7,2740.6,2.2655173]
[1643686706898,0.4322,2741.6,2740.6,2.2655173]
[1643686707096,0.91218,2741.4,2740.6,2.2655173]
[1643686707298,0.91218,2741.4,2740.8,0.80567124]
[1643686707736,1.82436,2741.4,2740.6,2.2655173]
[1643686707898,1.82436,2741.4,2740.6,0.32039997]
[1643686708141,1.09465,2741.3,2740.6,0.32039997]
[1643686708547,1.09465,2741.3,2740.6,0.1822]
[1643686709045,0.37245146,2741.0,2740.6,0.1822]
[1643686709250,0.4324,2741.1,2740.6,0.1822]
[1643686709457,0.91235,2741.0,2740.3,24.66156972]
[1643686709652,0.91235,2741.0,2740.3,24.96156972]
[1643686709860,0.91235,2741.0,2740.3,23.1324]
[1643686710248,0.91235,2741.0,2740.3,23.95678]
[1643686710957,1.09475,2741.0,2740.3,23.77438]
[1643686711151,1.09475,2741.0,2740.5,22.56221]
[1643686711353,0.91211,2741.3,2740.7,21.65]
[1643686711556,0.91211,2741.3,2740.8,24.53232133]
[1643686711790,0.91211,2741.3,2740.9,0.69793025]
[1643686712194,0.91211,2741.3,2741.1,0.43998884]
[1643686712996,0.91211,2741.3,2741.2,1.83664825]
[1643686713601,0.91211,2741.3,2741.2,2.83664825]
[1643686713796,0.91211,2741.3,2741.2,1.0]
[1643686713996,0.91211,2741.3,2741.2,1.6976268]
[1643686714195,1.82427,2741.6,2741.2,0.6976268]
[1643686714397,1.82427,2741.6,2741.3,21.65]
[1643686714797,1.82427,2741.6,2741.3,0.3]
[1643686715096,1.82427,2741.6,2741.1,1.73998884]
[1643686715297,1.82427,2741.6,2741.2,0.69752518]
[1643686715545,2.07427,2741.6,2741.1,23.57218884]
[1643686715748,2.07427,2741.6,2741.2,1.82070614]
[1643686716153,1.82427,2741.6,2741.2,1.82070614]
[1643686716350,1.82427,2741.6,2741.2,2.82070614]
[1643686716954,1.82427,2741.6,2741.2,1.0]
[1643686717151,2.07427,2741.6,2741.1,22.57218884]
[1643686717451,0.1822,2741.5,2741.1,0.1822]
[1643686717656,0.9121,2741.4,2740.2,0.67140213]
[1643686717853,0.9121,2741.4,2740.3,0.6976005]
[1643686717854,0.99430924,2741.3,2740.3,0.6976005]
[1643686718054,0.81190924,2741.2,2740.4,21.65]
[1643686718363,0.1824,2741.1,2740.5,0.6976005]
[1643686718553,0.1824,2741.1,2740.7,0.43110533]
[1643686718758,0.1824,2741.1,2740.5,0.75860234]
[1643686718954,0.1824,2741.1,2740.6,0.68142394]
[1643686719155,1.82458,2741.0,2740.7,2.86378776]
[1643686719430,0.91228,2741.2,2740.8,0.68138776]
[1643686719804,0.91228,2741.2,2740.9,22.51378776]
[1643686720007,0.91204,2741.4,2741.0,22.33138776]
[1643686720232,0.91204,2741.4,2741.2,0.93404782]
[1643686720404,0.91204,2741.4,2741.2,1.23404782]
[1643686720806,0.91057373,2741.4,2741.2,1.23404782]
[1643686721013,0.11099543,2741.7,2741.4,4.95]
[1643686721211,3.83104,2742.3,2741.4,4.95]
[1643686721212,0.1822,2742.3,2741.5,3.98030357]
[1643686721415,0.82928526,2742.2,2742.1,0.41755039]
[1643686721607,0.1822,2742.5,2741.9,0.3]
[1643686721608,1.82376,2742.1,2741.9,0.3]
[1643686722015,1.82376,2742.1,2741.6,0.1822]
[1643686722215,2.73568,2742.1,2741.5,3.3]
[1643686722417,0.99401805,2742.0,2741.5,1.3]
[1643686722623,0.81181805,2741.9,2741.7,0.42118491]
[1643686722819,2.98568,2742.1,2741.5,0.3]
[1643686723046,2.63575362,2742.0,2740.9,1.82394]
[1643686723250,2.63575362,2742.0,2740.7,1.1353]
[1643686723251,0.91213,2741.6,2741.1,0.6972255]
[1643686723455,0.1822,2741.5,2741.1,0.6972255]
[1643686723678,1.16213,2741.6,2741.1,0.6972255]
[1643686724352,1.16213,2741.6,2741.1,1.9972255]
[1643686724554,1.16213,2741.6,2741.2,0.6972255]
[1643686724757,0.91213,2741.5,2741.2,0.6972255]
[1643686725157,0.91213,2741.6,2741.2,0.6972255]
[1643686725355,0.91213,2741.6,2741.1,24.7675997]
[1643686725854,0.91213,2741.6,2741.1,25.6795897]
[1643686726057,0.91213,2741.6,2741.2,21.65]
[1643686726357,0.91213,2741.6,2741.3,1.0]
[1643686726559,0.91213,2741.6,2741.3,1.3]
[1643686726815,0.91213,2741.6,2741.3,0.3]
[1643686726998,0.91213,2741.6,2741.2,3.13000369]
[1643686727602,0.91213,2741.6,2741.2,1.3]
[1643686728204,0.91213,2741.6,2741.2,3.11115879]
[1643686729208,0.91213,2741.6,2741.5,22.02294666]
[1643686729411,0.91189,2742.0,2741.5,22.02294666]
[1643686729607,0.91189,2742.0,2741.6,21.65]
[1643686729807,0.1822,2742.2,2741.7,1.0]
[1643686730007,0.1822,2742.4,2741.7,1.0]
[1643686730211,0.1822,2742.4,2742.0,0.35197792]
[1643686730532,1.09404,2742.4,2742.0,0.35197792]
[1643686732096,1.09404,2742.4,2742.1,2.0]
[1643686732254,0.9176904,2743.2,2742.1,2.0]
[1643686732255,0.1822,2742.6,2742.2,21.65]
[1643686732470,0.91367438,2743.6,2742.6,21.65]
[1643686732654,0.91367438,2743.6,2742.5,0.01294924]
[1643686732655,0.1823,2743.7,2743.0,0.01235024]
[1643686732854,1.0838824,2743.9,2743.0,21.66235024]
[1643686733057,1.0838824,2743.9,2743.6,0.45998423]
[1643686733255,1.0838824,2743.9,2743.7,22.56108]
[1643686733453,1.0838824,2743.9,2743.8,0.527]
[1643686733652,1.0838824,2743.9,2743.8,23.177]
[1643686733856,1.0838824,2743.9,2743.8,23.477]
[1643686734052,1.0838824,2743.9,2743.8,24.29974311]
[1643686734709,1.0838824,2743.9,2743.8,24.48194311]
[1643686736711,1.0838824,2743.9,2743.8,24.29974311]
[1643686737342,1.0838824,2743.9,2743.8,23.29974311]
[1643686737508,1.0838824,2743.9,2743.5,1.82215]
[1643686737708,1.0838824,2743.9,2742.8,2.13078362]
[1643686737709,0.1822,2743.8,2742.8,2.13078362]
[1643686737908,0.1822,2743.8,2743.1,21.65]
[1643686738146,0.1822,2743.8,2742.8,0.1822]
[1643686738547,0.5536378,2743.8,2743.0,0.37794626]
[1643686738747,0.5536378,2743.8,2742.8,0.1822]
[1643686739360,0.5536378,2743.8,2742.9,21.65]
[1643686739756,1.44501436,2743.8,2742.9,21.65]
[1643686740160,0.1822,2743.8,2743.0,1.82891832]
[1643686740357,0.1822,2743.8,2743.1,21.65]
[1643686740553,0.1822,2743.8,2743.3,21.65]
[1643686740951,1.0838824,2743.9,2743.3,21.65]
[1643686741152,1.0838824,2743.9,2743.6,0.41957099]
[1643686741795,1.0838824,2743.9,2743.6,22.06957099]
[1643686742001,1.0838824,2743.9,2743.6,0.41957099]
[1643686742302,1.0838824,2743.9,2742.7,0.91142]
[1643686742303,0.1822,2743.8,2742.7,0.91142]
[1643686742505,0.1822,2743.8,2742.4,0.1822]
[1643686742705,0.1822,2743.8,2742.2,1.94257274]
[1643686742706,0.7092,2743.8,2742.2,1.94257274]
[1643686743104,0.7092,2743.8,2742.5,0.40602882]
[1643686743105,0.34426048,2743.4,2742.5,0.40602882]
[1643686743404,1.08415035,2743.3,2742.5,0.40602882]
[1643686743618,0.1822,2743.3,2742.5,0.40602882]
[1643686743802,0.1822,2743.6,2742.5,0.40602882]
[1643686744303,0.1822,2743.6,2742.5,23.35602882]
[1643686744502,0.1822,2743.6,2742.5,22.35602882]
[1643686744703,0.98403543,2743.6,2742.5,21.95]
[1643686744902,0.98403543,2743.6,2742.5,0.3]
[1643686744903,0.1822,2743.6,2742.5,0.3]
[1643686745106,0.1822,2743.6,2742.3,21.65]
[1643686745304,0.76469965,2743.5,2742.4,1.0]
[1643686745549,0.91169,2743.3,2742.2,0.71962896]
[1643686745768,0.1822,2743.2,2742.2,0.71962896]
[1643686746049,0.1822,2743.2,2742.5,0.43812989]
[1643686747152,0.1822,2743.2,2742.6,1.83554572]
[1643686747352,0.01281299,2743.5,2742.5,22.08812989]
[1643686747353,0.1822,2743.3,2742.5,22.08812989]
[1643686747557,0.1822,2743.4,2742.5,22.08812989]
[1643686747758,0.1822,2743.4,2742.5,0.43812989]
[1643686749407,0.7646215,2743.3,2742.5,0.43812989]
[1643686749611,0.1822,2743.2,2742.5,0.43812989]
[1643686749908,0.7646215,2743.1,2742.5,0.43812989]
[1643686750211,1.0646215,2743.1,2742.1,0.1822]
[1643686750410,1.0646215,2743.1,2742.0,0.13819997]
[1643686750411,0.9468215,2743.0,2742.0,0.13819997]
[1643686750609,0.7646215,2742.9,2741.4,0.1822]
[1643686750808,0.7092,2742.8,2741.4,0.1822]
[1643686751068,0.7646215,2742.7,2741.4,0.1822]
[1643686751207,0.1822,2742.6,2741.9,0.39762611]
[1643686751412,0.76498609,2742.5,2741.4,0.1822]
[1643686751613,0.1822,2742.4,2741.2,0.1822]
[1643686751809,0.76498609,2742.3,2741.2,0.1822]
[1643686752007,0.1822,2742.2,2741.2,0.1822]
[1643686752408,1.29280995,2742.1,2741.2,0.50618235]
[1643686752807,0.1822,2742.0,2741.2,0.32398235]
[1643686753460,1.21207,2742.3,2741.2,0.32398235]
[1643686753461,0.1822,2742.2,2741.2,0.32398235]
[1643686753660,0.76655023,2742.1,2741.2,0.32398235]
[1643686754263,1.06655023,2742.1,2741.2,0.32398235]
[1643686754467,0.76655023,2742.0,2741.0,0.1822]
[1643686754667,0.1822,2741.9,2741.0,0.1822]
[1643686754870,0.76655023,2741.8,2741.0,0.1822]
[1643686755066,0.1822,2741.7,2740.7,0.1822]
[1643686755262,0.76655023,2741.6,2740.7,0.1822]
[1643686755465,0.76655023,2741.6,2740.8,0.44083343]
[1643686755862,1.29355023,2741.6,2740.8,0.44083343]
[1643686756064,0.76655023,2741.5,2740.8,0.44083343]
[1643686756272,1.06655023,2741.5,2740.8,0.44083343]
[1643686756464,0.3,2741.5,2740.8,0.44083343]
[1643686756664,0.827,2741.6,2741.5,0.00091518]
[1643686756898,1.73931,2741.6,2740.8,0.44083343]
[1643686757100,1.73931,2741.6,2740.6,7.44]
[1643686757101,0.1824,2741.5,2740.6,7.44]
[1643686757603,0.76643016,2741.4,2740.6,7.44]
[1643686757800,0.1824,2741.3,2740.6,7.44]
[1643686757999,1.0824,2741.3,2740.1,0.1824]
[1643686758206,0.9,2741.1,2740.3,0.37277516]
[1643686758401,2.00724,2741.3,2740.3,0.37277516]
[1643686758402,0.9,2741.0,2740.3,0.37277516]
[1643686758601,0.9,2741.0,2740.1,0.1824]
[1643686758801,0.9,2740.9,2740.1,0.1824]
[1643686759405,1.427,2740.9,2740.1,0.1824]
[1643686759601,0.9,2740.5,2740.1,0.1824]
[1643686759806,0.9,2740.4,2740.1,0.1824]
[1643686760672,0.1824,2740.3,2739.4,7.44]
[1643686761059,0.1824,2740.3,2739.6,0.40552666]
[1643686761461,0.1824,2740.3,2739.6,1.2826227]
[1643686761860,0.18112636,2740.3,2739.6,1.2826227]
[1643686762061,0.9,2740.0,2739.6,0.40552666]
[1643686762262,0.9,2740.0,2739.4,7.44]
[1643686762263,0.9,2740.0,2739.5,0.1824]
[1643686762464,0.9,2740.0,2739.5,2.08795764]
[1643686762662,0.9,2740.0,2739.5,2.09708028]
[1643686762863,0.9,2740.0,2739.5,2.06896716]
[1643686763061,0.9,2740.0,2739.8,0.79445682]
[1643686763263,0.9,2740.0,2739.9,0.41442365]
[1643686763863,0.9,2740.0,2739.5,0.1824]
[1643686764163,0.9,2740.0,2739.5,2.07669215]
[1643686764398,0.9,2740.0,2739.7,0.70788459]
[1643686764599,0.9,2740.0,2739.8,0.1824]
[1643686765905,0.9,2740.0,2739.7,0.44831501]
[1643686767106,0.9,2739.8,2739.3,0.01281807]
[1643686767313,0.91250819,2739.7,2738.9,0.1824]
[1643686767506,0.1824,2739.6,2738.6,0.1824]
[1643686767706,1.0824,2739.6,2738.6,0.1824]
[1643686768154,1.0824,2739.6,2739.0,0.32610981]
[1643686768155,8.7875,2739.6,2739.0,0.32610981]
[1643686768355,1.0824,2739.6,2739.0,0.32610981]
[1643686769962,0.9,2739.6,2739.0,0.32610981]
[1643686770757,0.9,2739.5,2739.0,0.32610981]
[1643686771555,0.9,2739.5,2738.7,0.1824]
[1643686771801,0.9,2739.5,2738.6,21.65]
[1643686772001,0.9,2739.5,2738.6,21.95]
[1643686772210,0.9,2739.5,2738.4,0.1824]
[1643686772404,0.9,2739.4,2738.4,0.1824]
[1643686772605,0.9,2739.2,2738.5,0.31516917]
[1643686773237,0.9,2739.4,2738.5,0.31516917]
[1643686773409,0.1824,2739.3,2738.5,0.31516917]
[1643686773605,1.0824,2739.4,2738.5,0.31516917]
[1643686774306,1.44874316,2739.4,2738.5,0.31516917]
[1643686774504,1.0824,2739.4,2738.5,0.31516917]
[1643686774704,0.1824,2739.4,2738.5,0.31516917]
[1643686775328,0.1824,2739.5,2738.5,0.31516917]
[1643686776162,0.1824,2739.5,2738.4,21.8324]
[1643686776394,0.1824,2739.5,2738.4,21.65]
[1643686776567,0.4824,2739.6,2738.5,23.65670453]
[1643686776765,0.1824,2739.6,2738.5,23.95670453]
[1643686776961,0.1824,2739.6,2738.5,2.30670453]
[1643686776962,0.1825,2739.6,2738.5,2.30670453]
[1643686777179,0.1825,2739.6,2738.5,23.95670453]
[1643686777365,0.1825,2739.6,2738.7,0.31818293]
[1643686777763,0.1825,2739.6,2738.7,0.1824]
[1643686777970,0.1825,2739.6,2738.6,0.1824]
[1643686778166,0.527,2739.5,2738.3,21.8324]
[1643686778766,0.527,2739.5,2738.4,2.85605214]
[1643686778966,0.527,2739.5,2738.8,0.32844116]
[1643686779418,0.527,2739.5,2738.9,1.85850439]
[1643686779616,1.1581,2739.7,2739.0,0.1824]
[1643686779820,8.53829997,2740.1,2739.0,0.1824]
[1643686780114,4.65509997,2740.1,2739.0,0.1824]
[1643686780315,4.97898623,2740.1,2739.0,0.1824]
[1643686780514,0.1824,2740.0,2739.2,0.79190554]
[1643686780715,0.1824,2740.0,2738.9,2.04316662]
[1643686780716,1.50419997,2740.1,2738.9,2.04316662]
[1643686781115,1.50419997,2740.1,2738.9,3.04316662]
[1643686781316,1.50419997,2740.1,2738.9,2.04316662]